fUSD/lending_fUSD_20260522
["ID","MTS","AMOUNT","RATE_DAILY","PERIOD"]
[422811252,1779442239000,-166.66,0.00013813,2]
[422811244,1779442239000,-9999.99,0.00013699,2]
[422811245,1779442239000,-167369.22,0.00013699,2]
[422811246,1779442239000,-1628.93,0.00013699,2]
[422811250,1779442239000,-230.0,0.0001372,2]
[422811251,1779442239000,-8342.762913,0.00013724,2]
[422811253,1779442239000,-158.4085066,0.00013816,2]
[422811254,1779442239000,-1174.72052864,0.00013816,2]
[422811243,1779442239000,-150.99,0.00013699,2]
[422811283,1779442239000,-500.0,0.00014071,2]
[422811287,1779442239000,-500.0,0.00014071,2]
[422811289,1779442239000,-500.0,0.00014071,2]
[422811327,1779442239000,-15464.0137153,0.00014233,2]
[422811326,1779442239000,-5206.5292524,0.00014233,2]
[422811319,1779442239000,-150.0,0.0001409,2]
[422811324,1779442239000,-500.0,0.00014232,2]
[422811322,1779442239000,-474335.8247495,0.00014194,2]
[422811323,1779442239000,-331.91,0.00014198,2]
[422811325,1779442239000,-1388.0,0.00014233,5]
[422811328,1779442239000,-773.3739128,0.00014233,2]
[422811329,1779442239000,-25754.3585723,0.00014233,2]
[422811330,1779442239000,-10000.0,0.00014246,2]
[422811337,1779442239000,-1174.72052864,0.0001425,2]
[422811333,1779442239000,-7175.45058851,0.00014246,2]
[422811335,1779442239000,-1171.39539406,0.00014246,2]
[422811338,1779442239000,-3746.61837292,0.0001425,2]
[422811334,1779442239000,-13433.19614664,0.00014246,2]
[422811339,1779442239000,-166.66,0.00014255,2]
[422811336,1779442239000,-413.01228106,0.00014246,2]
[422811331,1779442239000,-5000.0,0.00014246,2]
[422811340,1779442239000,-3813.61725714,0.00014288,2]
[422811341,1779442239000,-817.94161,0.000143,2]
[422811346,1779442239000,-150.0,0.00014329,2]
[422811342,1779442239000,-817.94161,0.000143,2]
[422811344,1779442239000,-150.0,0.00014329,2]
[422811345,1779442239000,-150.0,0.00014329,2]
[422811343,1779442239000,-817.94161,0.0001432,2]
[422811347,1779442239000,-213.65585183,0.00014329,2]
[422811286,1779442239000,-150.0,0.00014071,2]
[422811320,1779442239000,-6804.5121,0.00014146,2]
[422811321,1779442239000,-350.0,0.00014169,2]
[422811332,1779442239000,-453.80487874,0.00014246,2]
[422811318,1779442239000,-339.25904319,0.00014071,2]
[422811317,1779442239000,-500.0,0.00014071,2]
[422811291,1779442239000,-500.0,0.00014071,2]
[422811293,1779442239000,-500.0,0.00014071,2]
[422811292,1779442239000,-500.0,0.00014071,2]
[422811294,1779442239000,-150.0,0.00014071,2]
[422811299,1779442239000,-260.9446165,0.00014071,2]
[422811295,1779442239000,-500.0,0.00014071,2]
[422811296,1779442239000,-150.0,0.00014071,2]
[422811297,1779442239000,-500.0,0.00014071,2]
[422811298,1779442239000,-150.0,0.00014071,2]
[422811300,1779442239000,-188.08786119,0.00014071,2]
[422811302,1779442239000,-500.0,0.00014071,2]
[422811301,1779442239000,-500.0,0.00014071,2]
[422811303,1779442239000,-500.0,0.00014071,2]
[422811290,1779442239000,-372.0,0.00014071,2]
[422811316,1779442239000,-500.0,0.00014071,2]
[422811305,1779442239000,-500.0,0.00014071,2]
[422811314,1779442239000,-500.0,0.00014071,2]
[422811315,1779442239000,-500.0,0.00014071,2]
[422811310,1779442239000,-430.08185109,0.00014071,2]
[422811313,1779442239000,-500.0,0.00014071,2]
[422811312,1779442239000,-500.0,0.00014071,2]
[422811311,1779442239000,-500.0,0.00014071,2]
[422811307,1779442239000,-500.0,0.00014071,2]
[422811308,1779442239000,-500.0,0.00014071,2]
[422811306,1779442239000,-500.0,0.00014071,2]
[422811304,1779442239000,-500.0,0.00014071,2]
[422811309,1779442239000,-500.0,0.00014071,2]
[422811397,1779442240000,-713.56,0.00014345,2]
[422811393,1779442240000,-713.56,0.00014345,2]
[422811394,1779442240000,-713.56,0.00014345,2]
[422811395,1779442240000,-713.56,0.00014345,2]
[422811387,1779442240000,-510.74292638,0.00014345,2]
[422811378,1779442240000,-508.99758767,0.00014345,2]
[422811385,1779442240000,-500.0,0.00014345,2]
[422811382,1779442240000,-500.0,0.00014345,2]
[422811380,1779442240000,-500.0,0.00014345,2]
[422811376,1779442240000,-500.0,0.00014345,2]
[422811386,1779442240000,-500.0,0.00014345,2]
[422811381,1779442240000,-500.0,0.00014345,2]
[422811384,1779442240000,-500.0,0.00014345,2]
[422811388,1779442240000,-616.9808049,0.00014345,2]
[422811399,1779442240000,-713.56,0.00014345,2]
[422811396,1779442240000,-713.56,0.00014345,2]
[422811390,1779442240000,-713.56,0.00014345,2]
[422811391,1779442240000,-713.56,0.00014345,2]
[422811392,1779442240000,-713.56,0.00014345,2]
[422811398,1779442240000,-713.56,0.00014345,2]
[422811400,1779442240000,-713.56,0.00014345,2]
[422811402,1779442240000,-713.56,0.00014345,2]
[422811404,1779442240000,-713.56,0.00014345,2]
[422811403,1779442240000,-713.56,0.00014345,2]
[422811401,1779442240000,-713.56,0.00014345,2]
[422811407,1779442240000,-500.0,0.00014345,2]
[422811412,1779442240000,-500.0,0.00014345,2]
[422811405,1779442240000,-713.56,0.00014345,2]
[422811389,1779442240000,-500.0,0.00014345,2]
[422811379,1779442240000,-500.0,0.00014345,2]
[422811349,1779442240000,-682.65389158,0.00014336,2]
[422811377,1779442240000,-500.0,0.00014345,2]
[422811411,1779442240000,-500.0,0.00014345,2]
[422811350,1779442240000,-538.05787571,0.00014339,2]
[422811348,1779442240000,-150.0,0.00014329,2]
[422811352,1779442240000,-500.0,0.00014339,2]
[422811351,1779442240000,-500.0,0.00014339,2]
[422811354,1779442240000,-500.0,0.00014345,2]
[422811361,1779442240000,-500.0,0.00014345,2]
[422811360,1779442240000,-500.0,0.00014345,2]
[422811359,1779442240000,-500.0,0.00014345,2]
[422811357,1779442240000,-527.2240957,0.00014345,2]
[422811356,1779442240000,-500.0,0.00014345,2]
[422811353,1779442240000,-300.0,0.00014345,2]
[422811358,1779442240000,-500.0,0.00014345,2]
[422811383,1779442240000,-500.0,0.00014345,2]
[422811355,1779442240000,-500.0,0.00014345,2]
[422811364,1779442240000,-523.75497223,0.00014345,2]
[422811363,1779442240000,-500.0,0.00014345,2]
[422811368,1779442240000,-423.58955701,0.00014345,2]
[422811366,1779442240000,-350.56333019,0.00014345,2]
[422811370,1779442240000,-500.0,0.00014345,2]
[422811372,1779442240000,-500.0,0.00014345,2]
[422811365,1779442240000,-1227.99243558,0.00014345,5]
[422811369,1779442240000,-500.0,0.00014345,2]
[422811367,1779442240000,-500.0,0.00014345,2]
[422811371,1779442240000,-500.0,0.00014345,2]
[422811374,1779442240000,-500.0,0.00014345,2]
[422811373,1779442240000,-500.0,0.00014345,2]
[422811375,1779442240000,-500.0,0.00014345,2]
[422811362,1779442240000,-500.0,0.00014345,2]
[422811406,1779442240000,-713.56,0.00014345,2]
[422811464,1779442240000,-517.39942866,0.00014345,2]
[422811409,1779442240000,-500.0,0.00014345,2]
[422811442,1779442240000,-500.0,0.00014345,2]
[422811447,1779442240000,-500.0,0.00014345,2]
[422811444,1779442240000,-500.0,0.00014345,2]
[422811445,1779442240000,-500.0,0.00014345,2]
[422811448,1779442240000,-500.0,0.00014345,2]
[422811449,1779442240000,-500.0,0.00014345,2]
[422811451,1779442240000,-500.0,0.00014345,2]
[422811456,1779442240000,-500.0,0.00014345,2]
[422811453,1779442240000,-500.0,0.00014345,2]
[422811454,1779442240000,-500.0,0.00014345,2]
[422811452,1779442240000,-500.0,0.00014345,2]
[422811455,1779442240000,-500.0,0.00014345,2]
[422811458,1779442240000,-500.0,0.00014345,2]
[422811446,1779442240000,-500.0,0.00014345,2]
[422811460,1779442240000,-500.0,0.00014345,2]
[422811459,1779442240000,-500.0,0.00014345,2]
[422811463,1779442240000,-500.0,0.00014345,2]
[422811462,1779442240000,-500.0,0.00014345,2]
[422811461,1779442240000,-500.0,0.00014345,2]
[422811457,1779442240000,-500.0,0.00014345,2]
[422811467,1779442240000,-500.0,0.00014345,2]
[422811469,1779442240000,-500.0,0.00014345,2]
[422811468,1779442240000,-500.0,0.00014345,2]
[422811471,1779442240000,-500.0,0.00014345,2]
[422811472,1779442240000,-500.0,0.00014345,2]
[422811465,1779442240000,-500.0,0.00014345,2]
[422811408,1779442240000,-500.0,0.00014345,2]
[422811466,1779442240000,-500.0,0.00014345,2]
[422811450,1779442240000,-500.0,0.00014345,2]
[422811443,1779442240000,-500.0,0.00014345,2]
[422811470,1779442240000,-500.0,0.00014345,2]
[422811437,1779442240000,-500.0,0.00014345,2]
[422811410,1779442240000,-500.0,0.00014345,2]
[422811439,1779442240000,-500.0,0.00014345,2]
[422811414,1779442240000,-500.0,0.00014345,2]
[422811415,1779442240000,-500.0,0.00014345,2]
[422811417,1779442240000,-500.0,0.00014345,2]
[422811416,1779442240000,-500.0,0.00014345,2]
[422811418,1779442240000,-150.06581077,0.00014345,2]
[422811419,1779442240000,-500.0,0.00014345,2]
[422811421,1779442240000,-500.0,0.00014345,2]
[422811420,1779442240000,-500.0,0.00014345,2]
[422811423,1779442240000,-500.0,0.00014345,2]
[422811433,1779442240000,-500.0,0.00014345,2]
[422811424,1779442240000,-500.0,0.00014345,2]
[422811422,1779442240000,-500.0,0.00014345,2]
[422811413,1779442240000,-500.0,0.00014345,2]
[422811425,1779442240000,-500.0,0.00014345,2]
[422811429,1779442240000,-500.0,0.00014345,2]
[422811441,1779442240000,-500.0,0.00014345,2]
[422811438,1779442240000,-500.0,0.00014345,2]
[422811436,1779442240000,-500.0,0.00014345,2]
[422811435,1779442240000,-500.0,0.00014345,2]
[422811434,1779442240000,-500.0,0.00014345,2]
[422811440,1779442240000,-500.0,0.00014345,2]
[422811426,1779442240000,-500.0,0.00014345,2]
[422811431,1779442240000,-500.0,0.00014345,2]
[422811430,1779442240000,-500.0,0.00014345,2]
[422811427,1779442240000,-500.0,0.00014345,2]
[422811428,1779442240000,-500.0,0.00014345,2]
[422811432,1779442240000,-500.0,0.00014345,2]
[422811512,1779442241000,-151.0,0.00014346,2]
[422811514,1779442241000,-151.0,0.00014346,2]
[422811511,1779442241000,-151.0,0.00014346,2]
[422811504,1779442241000,-904.721416,0.00014346,2]
[422811513,1779442241000,-151.0,0.00014346,2]
[422811509,1779442241000,-151.0,0.00014346,2]
[422811508,1779442241000,-904.721416,0.00014346,2]
[422811501,1779442241000,-904.721416,0.00014346,2]
[422811516,1779442241000,-151.0,0.00014346,2]
[422811506,1779442241000,-294.135395,0.00014346,2]
[422811510,1779442241000,-151.0,0.00014346,2]
[422811515,1779442241000,-166.577385,0.00014346,2]
[422811517,1779442241000,-151.0,0.00014346,2]
[422811530,1779442241000,-151.0,0.00014346,2]
[422811531,1779442241000,-224.525448,0.00014346,2]
[422811527,1779442241000,-151.0,0.00014346,2]
[422811528,1779442241000,-151.0,0.00014346,2]
[422811518,1779442241000,-151.0,0.00014346,2]
[422811529,1779442241000,-151.0,0.00014346,2]
[422811520,1779442241000,-151.0,0.00014346,2]
[422811522,1779442241000,-151.0,0.00014346,2]
[422811519,1779442241000,-151.0,0.00014346,2]
[422811523,1779442241000,-151.0,0.00014346,2]
[422811524,1779442241000,-151.0,0.00014346,2]
[422811507,1779442241000,-904.721416,0.00014346,2]
[422811521,1779442241000,-151.0,0.00014346,2]
[422811526,1779442241000,-151.0,0.00014346,2]
[422811500,1779442241000,-904.721416,0.00014346,2]
[422811490,1779442241000,-56498.12837569,0.00014346,2]
[422811503,1779442241000,-151.0,0.00014346,2]
[422811525,1779442241000,-151.0,0.00014346,2]
[422811474,1779442241000,-500.0,0.00014345,2]
[422811476,1779442241000,-373.63891721,0.00014345,2]
[422811478,1779442241000,-500.0,0.00014346,2]
[422811475,1779442241000,-500.0,0.00014345,2]
[422811473,1779442241000,-500.0,0.00014345,2]
[422811477,1779442241000,-1046.0,0.00014345,5]
[422811479,1779442241000,-1499849.90847254,0.00014346,2]
[422811485,1779442241000,-460.44507258,0.00014346,2]
[422811480,1779442241000,-9814.23720301,0.00014346,2]
[422811481,1779442241000,-218.91,0.00013274,2]
[422811483,1779442241000,-2565.98624479,0.00014346,2]
[422811482,1779442241000,-239.96313864,0.00014346,2]
[422811484,1779442241000,-2868.59911662,0.00014346,2]
[422811486,1779442241000,-3616.25597009,0.00014346,2]
[422811488,1779442241000,-846.22880393,0.00014346,2]
[422811492,1779442241000,-1979.65645078,0.00014346,2]
[422811491,1779442241000,-148204.90178436,0.00014346,2]
[422811494,1779442241000,-757299.56278949,0.00014346,2]
[422811496,1779442241000,-904.721416,0.00014346,2]
[422811495,1779442241000,-151.0,0.00014346,2]
[422811487,1779442241000,-14691.77697692,0.00014346,2]
[422811493,1779442241000,-792.10950028,0.00014346,2]
[422811497,1779442241000,-904.721416,0.00014346,2]
[422811498,1779442241000,-151.0,0.00014346,2]
[422811499,1779442241000,-151.0,0.00014346,2]
[422811502,1779442241000,-151.0,0.00014346,2]
[422811505,1779442241000,-904.721416,0.00014346,2]
[422811532,1779442241000,-33195.548,0.00014346,2]
[422811489,1779442241000,-272.24010028,0.00014346,2]
[422811536,1779442241000,-199.56957794,0.00014446,2]
[422811568,1779442241000,-1856.43022821,0.000149,3]
[422811566,1779442241000,-242.4406602,0.00014868,2]
[422811564,1779442241000,-5746.5741527,0.00014821,2]
[422811560,1779442241000,-682.65389158,0.00014802,2]
[422811563,1779442241000,-3450.4878568,0.00014821,2]
[422811572,1779442241000,-3813.61725714,0.000149,2]
[422811582,1779442241000,-925.53099448,0.0001497,2]
[422811584,1779442241000,-713.56,0.00014989,2]
[422811573,1779442241000,-13433.19614663,0.000149,2]
[422811574,1779442241000,-1171.39539406,0.000149,2]
[422811583,1779442241000,-163.390817,0.00014987,2]
[422811575,1779442241000,-413.01228104,0.000149,2]
[422811565,1779442241000,-151.0,0.00014868,2]
[422811577,1779442241000,-23615.7901361,0.0001495,2]
[422811579,1779442241000,-769.907908,0.00014952,2]
[422811576,1779442241000,-150.0,0.00014915,2]
[422811580,1779442241000,-1282.234011,0.00014952,2]
[422811581,1779442241000,-700.0,0.0001497,2]
[422811587,1779442241000,-713.56,0.00014989,2]
[422811585,1779442241000,-713.56,0.00014989,2]
[422811586,1779442241000,-713.56,0.00014989,2]
[422811588,1779442241000,-713.70409866,0.00014989,2]
[422811591,1779442241000,-208951.12609797,0.00015,2]
[422811589,1779442241000,-300.0,0.00014989,2]
[422811590,1779442241000,-6627.480786,0.0001499,2]
[422811592,1779442241000,-1953.9332371,0.00015,2]
[422811578,1779442241000,-259.2178278,0.00014952,2]
[422811569,1779442241000,-176.13493479,0.000149,2]
[422811571,1779442241000,-176.13493479,0.000149,2]
[422811558,1779442241000,-152.0,0.00014699,9]
[422811534,1779442241000,-300.0,0.00014445,2]
[422811540,1779442241000,-817.94162,0.00014446,2]
[422811533,1779442241000,-168.12,0.00014384,2]
[422811537,1779442241000,-151.0,0.00014446,2]
[422811543,1779442241000,-13433.19614663,0.00014573,2]
[422811570,1779442241000,-176.13493479,0.000149,2]
[422811542,1779442241000,-628.92437348,0.0001451,15]
[422811544,1779442241000,-1171.39539406,0.00014573,2]
[422811538,1779442241000,-817.94161,0.00014446,2]
[422811539,1779442241000,-817.94162,0.00014446,2]
[422811546,1779442241000,-480.7,0.00014574,2]
[422811555,1779442241000,-1588.0,0.0001468,2]
[422811554,1779442241000,-1588.0,0.0001468,2]
[422811547,1779442241000,-479.78689615,0.0001459,2]
[422811541,1779442241000,-350.0,0.0001446,2]
[422811556,1779442241000,-2311.0,0.0001468,2]
[422811557,1779442241000,-166.66,0.00014696,2]
[422811562,1779442241000,-1161.7337059,0.00014821,2]
[422811561,1779442241000,-105838.6285404,0.00014812,2]
[422811567,1779442241000,-8415.54627573,0.000149,3]
[422811559,1779442241000,-1676.87409332,0.000147,2]
[422811550,1779442241000,-713.56,0.00014608,2]
[422811535,1779442241000,-713.56,0.00014445,2]
[422811551,1779442241000,-590.0,0.00014639,2]
[422811552,1779442241000,-163.0,0.0001468,2]
[422811553,1779442241000,-1588.0,0.0001468,2]
[422811549,1779442241000,-150.16,0.00014607,2]
[422811548,1779442241000,-481.6269992,0.00014593,2]
[422811545,1779442241000,-413.01228104,0.00014573,2]
[422811613,1779442243000,-3516.27947134,0.00015,2]
[422811614,1779442243000,-2619.9222051,0.00015,2]
[422811612,1779442243000,-1174.72052864,0.00014466,2]
[422811625,1779442246000,-346.89682635,0.00015,2]
[422811626,1779442246000,-804.84023017,0.00015,2]
[422811624,1779442246000,-5406.52355252,0.00015,2]
[422811622,1779442246000,-5738.94001287,0.00013883,2]
[422811623,1779442246000,-1117.91606221,0.000147,2]
[422811621,1779442246000,-320.05998713,0.00013883,2]
[422811630,1779442469000,-200.0,0.00010029,2]
[422811632,1779442561000,567.38,7.001e-05,2]
[422811631,1779442561000,567.38,6.664e-05,2]
[422811634,1779442562000,567.38,7.675e-05,2]
[422811633,1779442562000,567.38,7.338e-05,2]
[422811635,1779442757000,152.0,0.00011223,3]
[422811636,1779442802000,-280.31,8.012e-05,2]
[422811639,1779443134000,-280.31,8.012e-05,2]
[422811641,1779443341000,1000.0,0.0002808,120]
[422811642,1779443386000,293.0,0.00028,120]
[422811644,1779443406000,425.87,6.624e-05,2]
[422811643,1779443406000,425.87,6.305e-05,2]
[422811648,1779443407000,425.87,7.899e-05,2]
[422811647,1779443407000,425.87,7.58e-05,2]
[422811646,1779443407000,425.87,7.261e-05,2]
[422811645,1779443407000,425.87,6.942e-05,2]
[422811653,1779443432000,-122.76924897,8.218e-05,2]
[422811652,1779443432000,-303.10075103,8.218e-05,2]
[422811654,1779443432000,-425.87,8.536e-05,2]
[422811655,1779443432000,-150.0,8.653e-05,2]
[422811656,1779443432000,-208.7374384,8.736e-05,2]
[422811657,1779443432000,-425.87,8.855e-05,2]
[422811659,1779443432000,-425.87,9.493e-05,2]
[422811661,1779443432000,-425.87,0.00010131,2]
[422811658,1779443432000,-425.87,9.174e-05,2]
[422811660,1779443432000,-425.87,9.812e-05,2]
[422811668,1779443432000,-3382.28054064,0.00010813,2]
[422811667,1779443432000,-233.0,0.00010812,2]
[422811665,1779443432000,-1200.0,0.00010789,2]
[422811666,1779443432000,-300.0,0.00010812,2]
[422811663,1779443432000,-425.87,0.00010449,2]
[422811664,1779443432000,-425.87,0.00010768,2]
[422811662,1779443432000,-215.27762834,0.0001025,2]
[422811702,1779443433000,-840.228,0.0001363,2]
[422811705,1779443433000,-500.0,0.00013698,2]
[422811700,1779443433000,-500.0,0.0001363,2]
[422811701,1779443433000,-500.0,0.0001363,2]
[422811695,1779443433000,-150.0,0.00013389,2]
[422811698,1779443433000,-152.0,0.00013541,7]
[422811704,1779443433000,-500.0,0.00013698,2]
[422811697,1779443433000,-1814.5,0.00013528,2]
[422811703,1779443433000,-160.0,0.00013638,2]
[422811699,1779443433000,-500.0,0.0001363,2]
[422811707,1779443433000,-500.0,0.00013698,2]
[422811716,1779443433000,-500.0,0.00013698,2]
[422811712,1779443433000,-500.0,0.00013698,2]
[422811706,1779443433000,-217.28622726,0.00013698,2]
[422811710,1779443433000,-500.0,0.00013698,2]
[422811709,1779443433000,-500.0,0.00013698,2]
[422811708,1779443433000,-500.0,0.00013698,2]
[422811713,1779443433000,-500.0,0.00013698,2]
[422811711,1779443433000,-500.0,0.00013698,2]
[422811714,1779443433000,-500.0,0.00013698,2]
[422811717,1779443433000,-500.0,0.00013698,2]
[422811696,1779443433000,-150.0,0.00013389,2]
[422811718,1779443433000,-696.54,0.00013698,2]
[422811715,1779443433000,-500.0,0.00013698,2]
[422811690,1779443433000,-373.56,0.00013192,2]
[422811681,1779443433000,-150.0,0.00012056,2]
[422811688,1779443433000,-255.0,0.00013141,2]
[422811719,1779443433000,-696.54,0.00013698,2]
[422811672,1779443433000,-3962.743842,0.00011743,2]
[422811671,1779443433000,-425.87,0.00011725,2]
[422811670,1779443433000,-425.87,0.00011406,2]
[422811669,1779443433000,-425.87,0.00011087,2]
[422811673,1779443433000,-152.0,0.00011802,4]
[422811674,1779443433000,-150.16,0.00011867,2]
[422811675,1779443433000,-233.0,0.00011868,2]
[422811676,1779443433000,-420.0,0.00011883,2]
[422811677,1779443433000,-200.0,0.00011921,2]
[422811678,1779443433000,-287.48,0.00012014,2]
[422811679,1779443433000,-1814.5,0.00012025,2]
[422811682,1779443433000,-425.87,0.00012362,2]
[422811680,1779443433000,-425.87,0.00012044,2]
[422811683,1779443433000,-166.67,0.00012376,2]
[422811684,1779443433000,-152.0,0.00012382,5]
[422811686,1779443433000,-587.0,0.00013061,2]
[422811693,1779443433000,-150.0,0.00013389,2]
[422811685,1779443433000,-152.0,0.00012961,6]
[422811692,1779443433000,-150.0,0.00013389,2]
[422811694,1779443433000,-150.0,0.00013389,2]
[422811689,1779443433000,-373.56,0.00013192,2]
[422811687,1779443433000,-150.18,0.00013093,2]
[422811691,1779443433000,-406.03889245,0.00013217,2]
[422811720,1779443433000,-696.54,0.00013698,2]
[422811747,1779443433000,-150.0,0.00013797,2]
[422811721,1779443433000,-696.54,0.00013698,2]
[422811752,1779443433000,-494.0,0.00013797,2]
[422811754,1779443433000,-494.0,0.00013797,2]
[422811758,1779443433000,-500.0,0.00013797,2]
[422811757,1779443433000,-494.0,0.00013797,2]
[422811751,1779443433000,-500.0,0.00013797,2]
[422811755,1779443433000,-500.0,0.00013797,2]
[422811753,1779443433000,-1113.0,0.00013797,2]
[422811756,1779443433000,-1113.0,0.00013797,2]
[422811760,1779443433000,-494.0,0.00013797,2]
[422811759,1779443433000,-1113.0,0.00013797,2]
[422811762,1779443433000,-1113.0,0.00013797,2]
[422811763,1779443433000,-494.0,0.00013797,2]
[422811761,1779443433000,-500.0,0.00013797,2]
[422811764,1779443433000,-500.0,0.00013797,2]
[422811766,1779443433000,-494.0,0.00013797,2]
[422811765,1779443433000,-1113.0,0.00013797,2]
[422811768,1779443433000,-1113.0,0.00013797,2]
[422811767,1779443433000,-500.0,0.00013797,2]
[422811769,1779443433000,-500.0,0.00013797,2]
[422811771,1779443433000,-1113.0,0.00013797,2]
[422811770,1779443433000,-494.0,0.00013797,2]
[422811723,1779443433000,-500.0,0.00013698,2]
[422811773,1779443433000,-494.0,0.00013797,2]
[422811750,1779443433000,-494.0,0.00013797,2]
[422811748,1779443433000,-207.76790227,0.00013797,2]
[422811772,1779443433000,-1113.0,0.00013797,2]
[422811741,1779443433000,-494.0,0.00013797,2]
[422811749,1779443433000,-494.0,0.00013797,2]
[422811722,1779443433000,-500.0,0.00013698,2]
[422811724,1779443433000,-500.0,0.00013698,2]
[422811725,1779443433000,-500.0,0.00013698,2]
[422811726,1779443433000,-500.0,0.00013698,2]
[422811727,1779443433000,-299.99,0.00013699,2]
[422811730,1779443433000,-166.66,0.00013699,2]
[422811729,1779443433000,-1579.39,0.00013699,2]
[422811734,1779443433000,-1288.19740344,0.00013728,2]
[422811737,1779443433000,-494.0,0.00013797,2]
[422811728,1779443433000,-911.07,0.00013699,2]
[422811733,1779443433000,-1588.0,0.0001372,2]
[422811731,1779443433000,-200.0,0.00013699,2]
[422811735,1779443433000,-500.0,0.00013783,2]
[422811736,1779443433000,-150.0,0.00013797,2]
[422811738,1779443433000,-494.0,0.00013797,2]
[422811742,1779443433000,-150.0,0.00013797,2]
[422811746,1779443433000,-494.0,0.00013797,2]
[422811740,1779443433000,-150.0,0.00013797,2]
[422811743,1779443433000,-494.0,0.00013797,2]
[422811739,1779443433000,-150.0,0.00013797,2]
[422811744,1779443433000,-150.0,0.00013797,2]
[422811732,1779443433000,-2500.0,0.00013699,2]
[422811745,1779443433000,-222.83131025,0.00013797,2]
[422811801,1779443434000,-494.0,0.00013797,2]
[422811805,1779443434000,-494.0,0.00013797,2]
[422811806,1779443434000,-1113.0,0.00013797,2]
[422811800,1779443434000,-1113.0,0.00013797,2]
[422811804,1779443434000,-12.74044043,0.00013797,2]
[422811803,1779443434000,-1100.25955957,0.00013797,2]
[422811802,1779443434000,-494.0,0.00013797,2]
[422811808,1779443434000,-1113.0,0.00013797,2]
[422811807,1779443434000,-501.03434406,0.00013797,2]
[422811809,1779443434000,-1113.0,0.00013797,2]
[422811819,1779443434000,-476.99893723,0.00013989,2]
[422811810,1779443434000,-3372.816,0.0001381,2]
[422811813,1779443434000,-166.66,0.00013847,2]
[422811817,1779443434000,-166.66,0.00013973,2]
[422811812,1779443434000,-166.66,0.00013836,2]
[422811814,1779443434000,-500.0,0.00013904,2]
[422811811,1779443434000,-182.86,0.0001381,2]
[422811815,1779443434000,-500.0,0.00013904,2]
[422811816,1779443434000,-14531.85327452,0.00013913,2]
[422811826,1779443434000,-500.0,0.00014,2]
[422811798,1779443434000,-1113.0,0.00013797,2]
[422811823,1779443434000,-500.0,0.00014,2]
[422811818,1779443434000,-500.0,0.00013989,2]
[422811799,1779443434000,-494.0,0.00013797,2]
[422811789,1779443434000,-500.0,0.00013797,2]
[422811794,1779443434000,-494.0,0.00013797,2]
[422811824,1779443434000,-500.0,0.00014,2]
[422811779,1779443434000,-500.0,0.00013797,2]
[422811776,1779443434000,-500.0,0.00013797,2]
[422811774,1779443434000,-500.0,0.00013797,2]
[422811775,1779443434000,-494.0,0.00013797,2]
[422811778,1779443434000,-500.0,0.00013797,2]
[422811777,1779443434000,-1113.0,0.00013797,2]
[422811781,1779443434000,-558.89065839,0.00013797,2]
[422811780,1779443434000,-1113.0,0.00013797,2]
[422811787,1779443434000,-500.0,0.00013797,2]
[422811793,1779443434000,-1113.0,0.00013797,2]